fUSD/lending_fUSD_20250929
["ID","MTS","AMOUNT","RATE_DAILY","PERIOD"]
[388472745,1759183835091,-2500.0,0.0001833,2]
[388472746,1759183835101,-437.16958455,0.0001833,2]
[388472747,1759183835110,-250.0,0.0001833,2]
[388472748,1759183835120,-168.0,0.00018335,2]
[388472749,1759183835130,-150.0,0.00018337,2]
[388472750,1759183835140,-500.0,0.00018356,2]
[388472751,1759183835150,-10076.79,0.00018356,2]
[388472752,1759183835161,-477.80806743,0.00018373,2]
[388472753,1759183835171,-168.0,0.00018374,2]
[388472754,1759183835181,-158.6,0.00018377,2]
[388472755,1759183835191,-5000.0,0.0001839,2]
[388472756,1759183835201,-505.75305138,0.0001839,2]
[388472757,1759183835212,-157.9849259,0.0001839,2]
[388472758,1759183835222,-151.0,0.00018395,2]
[388472759,1759183835231,-151.0,0.00018395,2]
[388472760,1759183835240,-151.0,0.00018395,2]
[388472761,1759183835250,-151.0,0.00018395,2]
[388472762,1759183835261,-151.0,0.00018395,2]
[388472763,1759183835270,-151.0,0.00018395,2]
[388472764,1759183835279,-151.0,0.00018395,2]
[388472765,1759183835289,-151.0,0.00018395,2]
[388472766,1759183835298,-151.0,0.00018395,2]
[388472767,1759183835308,-151.0,0.00018395,2]
[388472768,1759183835318,-151.0,0.00018395,2]
[388472769,1759183835327,-151.0,0.00018395,2]
[388472770,1759183835337,-188.0,0.00018395,2]
[388472771,1759183835347,-1000.0,0.000184,2]
[388472772,1759183835356,-1000.0,0.000184,2]
[388472773,1759183835366,-762.67979917,0.000184,2]
[388472774,1759183835376,-150.0,0.00018405,2]
[388472775,1759183835386,-300.0,0.00018409,2]
[388472776,1759183835397,-195.0,0.00018409,2]
[388472778,1759183835408,-500.0,0.00018409,2]
[388472779,1759183835419,-300.0,0.00018409,2]
[388472780,1759183835429,-250.0,0.00018409,2]
[388472781,1759183835440,-195.0,0.00018409,2]
[388472782,1759183835450,-150.0,0.00018409,2]
[388472783,1759183835460,-2000.0,0.00018409,2]
[388472784,1759183835471,-576.0,0.00018412,2]
[388472785,1759183835480,-248.71531821,0.00018415,2]
[388472786,1759183835491,-690.65,0.0001844,2]
[388472787,1759183835500,-151.0,0.00018459,2]
[388472788,1759183835510,-500.0,0.00018473,2]
[388472789,1759183835520,-500.0,0.00018473,2]
[388472790,1759183835531,-414.01339148,0.00018473,2]
[388472791,1759183835541,-500.0,0.00018473,2]
[388472792,1759183835551,-500.0,0.00018473,2]
[388472793,1759183835561,-500.0,0.00018473,2]
[388472794,1759183835571,-500.0,0.00018473,2]
[388472795,1759183835581,-500.0,0.00018473,2]
[388472796,1759183835590,-500.0,0.00018473,2]
[388472797,1759183835599,-388.63558128,0.00018473,2]
[388472798,1759183835609,-500.95146613,0.00018473,2]
[388472799,1759183835619,-500.0,0.00018473,2]
[388472800,1759183835628,-500.0,0.00018473,2]
[388472801,1759183835638,-500.0,0.00018473,2]
[388472802,1759183835647,-500.0,0.00018473,2]
[388472803,1759183835657,-160.58786256,0.00018473,2]
[388472804,1759183835667,-503.52505579,0.00018473,2]
[388472805,1759183835677,-500.0,0.00018473,2]
[388472806,1759183835687,-500.0,0.00018473,2]
[388472807,1759183835696,-267.59816546,0.00018473,2]
[388472808,1759183835706,-500.0,0.00018473,2]
[388472809,1759183835716,-455.30904476,0.00018473,2]
[388472810,1759183835725,-500.0,0.00018473,2]
[388472811,1759183835735,-500.0,0.00018473,2]
[388472812,1759183835745,-500.0,0.00018473,2]
[388472813,1759183835755,-200.32,0.00018479,2]
[388472814,1759183835766,-200.32,0.0001848,2]
[388472815,1759183835776,-200.32,0.0001848,2]
[388472816,1759183835786,-200.32,0.0001848,2]
[388472817,1759183835796,-200.32,0.0001848,2]
[388472818,1759183835806,-1749.08,0.0001848,2]
[388472819,1759183835815,-1749.08,0.0001848,2]
[388472820,1759183835830,-151.0,0.00018487,2]
[388472821,1759183835839,-151.0,0.00018487,2]
[388472822,1759183835849,-284.9618145,0.00018487,2]
[388472823,1759183835858,-666.0,0.00018489,2]
[388472824,1759183835869,-300.0,0.00018489,2]
[388472825,1759183835878,-300.0,0.00018489,2]
[388472826,1759183835888,-10000.0,0.00018489,2]
[388472827,1759183835898,-500.0,0.00018489,2]
[388472828,1759183835910,-500.0,0.00018489,2]
[388472829,1759183835920,-500.0,0.00018489,2]
[388472830,1759183835930,-500.0,0.00018489,2]
[388472831,1759183835939,-500.0,0.00018489,2]
[388472832,1759183835949,-151.0,0.00018489,2]
[388472833,1759183835958,-151.0,0.00018489,2]
[388472834,1759183835969,-608597.10520324,0.0001849,2]
[388472835,1759183835978,-284308.09867088,0.0001849,3]
[388472836,1759183835993,-9723.33907677,0.0001849,3]
[388472837,1759183836002,-345.94966984,0.0001849,3]
[388472838,1759183836019,-128.49432448,0.0001849,3]
[388472839,1759183836029,-1777.40015221,0.0001849,3]
[388472840,1759183838166,-4773.4758266,0.0001849,3]
[388472841,1759183838177,-1935.34111815,0.0001849,3]
[388472842,1759183838189,-2515.538259,0.0001849,3]
[388472843,1759183838201,-504.82183437,0.0001849,3]
[388472844,1759183838213,-19851.03265636,0.0001849,3]
[388472889,1759183840143,-582.30491443,0.0001849,3]
[388472892,1759183840155,-124.94087515,0.0001849,3]
[388472895,1759183840164,-151.0,0.0001849,2]
[388472898,1759183840174,-119.45412485,0.0001849,2]
[388472939,1759183844372,-160.58776779,0.0001839,2]
[388472940,1759183844382,-32.77380215,0.0001849,2]
[388472941,1759183844392,-119.56974251,0.0001849,2]
[388472942,1759183844404,-31.43025749,0.0001849,2]
[388472943,1759183844414,-151.0,0.0001849,2]
[388472944,1759183844432,-151.0,0.0001849,2]
[388472945,1759183844442,-151.0,0.0001849,2]
[388472946,1759183844452,-161.64607451,0.0001849,2]
[388472947,1759183844461,-151.0,0.0001849,2]
[388472948,1759183844473,-151.0,0.0001849,2]
[388472949,1759183844482,-151.0,0.0001849,2]
[388472950,1759183844492,-151.0,0.0001849,2]
[388472951,1759183844502,-151.0,0.0001849,2]
[388472952,1759183844511,-151.0,0.0001849,2]
[388472953,1759183844521,-151.0,0.0001849,2]
[388472954,1759183844531,-151.0,0.0001849,2]
[388472956,1759183844541,-151.0,0.0001849,2]
[388472957,1759183844551,-36.24464442,0.0001849,2]
[388472958,1759183844584,-114.75535558,0.0001849,2]
[388472959,1759183844594,-151.0,0.0001849,2]
[388472960,1759183844604,-153.231823,0.0001849,2]
[388472961,1759183844614,-151.0,0.0001849,2]
[388472962,1759183844624,-151.0,0.0001849,2]
[388472963,1759183844634,-151.0,0.0001849,2]
[388472964,1759183844644,-151.0,0.0001849,2]
[388472965,1759183844654,-154.383656,0.0001849,2]
[388472966,1759183844664,-154.383656,0.0001849,2]
[388472967,1759183844674,-154.383656,0.0001849,2]
[388472968,1759183844684,-116.65422252,0.0001849,2]
[388472969,1759183844704,-37.72943348,0.0001849,2]
[388472970,1759183844714,-154.383656,0.0001849,2]
[388472971,1759183844724,-154.383656,0.0001849,2]
[388472972,1759183844736,-154.383656,0.0001849,2]
[388472973,1759183844747,-154.383656,0.0001849,2]
[388472974,1759183844757,-151.0,0.0001849,2]
[388472975,1759183844768,-151.0,0.0001849,2]
[388472976,1759183844778,-151.0,0.0001849,2]
[388472977,1759183844788,-55.03793252,0.0001849,2]
[388472978,1759183844800,-95.96206748,0.0001849,2]
[388472979,1759183844811,-151.0,0.0001849,2]
[388472980,1759183844829,-151.0,0.0001849,2]
[388472981,1759183844839,-151.0,0.0001849,2]
[388472982,1759183844849,-120.58195262,0.0001849,2]
[388472983,1759183844863,-30.41804738,0.0001849,2]
[388472984,1759183844873,-151.0,0.0001849,2]
[388472985,1759183844882,-151.0,0.0001849,2]
[388472986,1759183844892,-255.531808,0.0001849,2]
[388472987,1759183844904,-151.0,0.0001849,2]
[388472988,1759183844915,-151.0,0.0001849,2]
[388472989,1759183844924,-151.0,0.0001849,2]
[388472990,1759183844935,-151.0,0.0001849,2]
[388472991,1759183844945,-151.0,0.0001849,2]
[388472992,1759183844955,-139.56905452,0.0001849,2]
[388472993,1759183846216,-1026.66993309,0.00017877,2]
[388472994,1759183846229,-623.05018226,0.00017877,2]
[388472995,1759183846444,-328.88020295,0.00017877,2]
[388472996,1759183846457,-536.18565,0.00017877,2]
[388472997,1759183846484,-1719.2140317,0.00017877,2]
[388472998,1759183846494,-11.43094548,0.0001849,2]
[388472999,1759183846504,-151.0,0.0001849,2]
[388473000,1759183846514,-151.0,0.0001849,2]
[388473001,1759183846524,-237.600543,0.0001849,2]
[388473002,1759183846534,-151.0,0.0001849,2]
[388473003,1759183846544,-151.0,0.0001849,2]
[388473004,1759183846554,-151.0,0.0001849,2]
[388473005,1759183846565,-151.0,0.0001849,2]
[388473006,1759183846583,-151.0,0.0001849,2]
[388473007,1759183846594,-157.366489,0.0001849,2]
[388473008,1759183846604,-152.873331,0.0001849,2]
[388473009,1759183846615,-151.0,0.0001849,2]
[388473010,1759183846625,-151.0,0.0001849,2]
[388473011,1759183846635,-151.0,0.0001849,2]
[388473012,1759183846646,-151.0,0.0001849,2]
[388473014,1759183846656,-151.0,0.0001849,2]
[388473015,1759183846666,-155.335417,0.0001849,2]
[388473016,1759183846676,-151.0,0.0001849,2]
[388473017,1759183846687,-185.654405,0.0001849,2]
[388473018,1759183846696,-151.0,0.0001849,2]
[388473019,1759183846706,-151.0,0.0001849,2]
[388473020,1759183846716,-151.0,0.0001849,2]
[388473021,1759183846727,-151.0,0.0001849,2]
[388473022,1759183846737,-151.0,0.0001849,2]
[388473023,1759183846748,-151.0,0.0001849,2]
[388473024,1759183846758,-151.0,0.0001849,2]
[388473025,1759183846768,-151.0,0.0001849,2]
[388473026,1759183846778,-151.0,0.0001849,2]
[388473027,1759183846788,-151.0,0.0001849,2]
[388473029,1759183846799,-151.0,0.0001849,2]
[388473030,1759183846809,-151.0,0.0001849,2]
[388473031,1759183846825,-151.0,0.0001849,2]
[388473032,1759183846840,-151.0,0.0001849,2]
[388473033,1759183846851,-187.087439,0.0001849,2]
[388473034,1759183846863,-151.0,0.0001849,2]
[388473035,1759183846873,-151.0,0.0001849,2]
[388473036,1759183846884,-151.0,0.0001849,2]
[388473037,1759183846897,-151.0,0.0001849,2]
[388473038,1759183846908,-244.520849,0.0001849,2]
[388473039,1759183846919,-151.0,0.0001849,2]
[388473040,1759183846930,-151.0,0.0001849,2]
[388473041,1759183846941,-333.55916,0.0001849,2]
[388473042,1759183846951,-333.55916,0.0001849,2]
[388473043,1759183846961,-333.55916,0.0001849,2]
[388473045,1759183846971,-43.10480887,0.0001849,2]
[388473047,1759183846992,-290.45435113,0.0001849,2]
[388473048,1759183847003,-333.55916,0.0001849,2]
[388473049,1759183847013,-305.48648737,0.0001849,2]
[388473055,1759183993617,162.0,0.000127,2]
[388473056,1759183993956,159.0,0.0001388,2]
[388473057,1759183994357,155.0,0.0001507,2]
[388473058,1759183994707,152.0,0.0001625,2]
[388473190,1759184420436,160.87,8.624e-05,2]
[388473222,1759184526703,150.0,0.000117,2]
[388473223,1759184526773,150.0,0.0001288,2]
[388473224,1759184527016,150.0,0.0001407,2]
[388473225,1759184527184,150.0,0.0001525,2]
[388473226,1759184527240,150.0,0.0001643,2]
[388473249,1759184803837,20000.0,0.00030136,120]
[388473278,1759184995709,399.99,0.00030136,120]
[388473295,1759185032376,-273.27249934,0.00016742,2]
[388473318,1759185032813,-2191.38,0.00016819,2]
[388473322,1759185032823,-150.0,0.00016842,7]
[388473325,1759185032833,-300.0,0.00016988,2]
[388473327,1759185032842,-385.1636671,0.00016988,2]
[388473329,1759185032854,-666.0,0.00016988,2]
[388473331,1759185032866,-148.8363329,0.00016988,2]
[388473333,1759185032875,-300.0,0.00016988,2]
[388473336,1759185032885,-300.0,0.00016988,2]
[388473338,1759185032894,-150.0,0.00016989,2]
[388473340,1759185032903,-150.0,0.00016989,2]
[388473342,1759185032912,-150.0,0.00016989,2]
[388473344,1759185032921,-150.0,0.00016989,2]
[388473346,1759185032930,-153.03344807,0.00016989,2]
[388473348,1759185032941,-294.02329061,0.00016989,2]
[388473350,1759185032950,-150.0,0.00016989,2]
[388473352,1759185032960,-150.0,0.00016989,2]
[388473354,1759185032970,-150.0,0.00016989,2]
[388473356,1759185032979,-150.0,0.00016989,2]
[388473357,1759185032988,-150.0,0.00016989,2]
[388473358,1759185032997,-150.0,0.00016989,2]
[388473359,1759185033007,-150.0,0.00016989,2]
[388473360,1759185033016,-250.0,0.00017,2]
[388473361,1759185033027,-292.48,0.00017249,2]
[388473362,1759185033036,-1000.0,0.00017265,2]
[388473363,1759185033046,-165.85,0.00017266,2]
[388473364,1759185033055,-243.73,0.00017275,2]
[388473365,1759185033064,-666.0,0.00017289,3]
[388473366,1759185033074,-556.87005487,0.00017365,2]
[388473367,1759185033083,-556.87005487,0.00017398,2]
[388473368,1759185033093,-556.87005487,0.00017429,2]
[388473369,1759185033102,-556.87005487,0.00017454,2]
[388473370,1759185033111,-556.87005487,0.00017476,2]
[388473371,1759185033120,-556.87005487,0.00017485,2]
[388473372,1759185033129,-556.87005487,0.00017493,2]
[388473373,1759185033140,-270.0,0.0001762,2]
[388473374,1759185033150,-500.0,0.000177,6]
[388473375,1759185033159,-172.23,0.000177,2]
[388473376,1759185033169,-173.21,0.00017709,2]
[388473377,1759185033178,-550.0,0.00017713,2]
[388473378,1759185033187,-204.97781259,0.00017715,2]
[388473379,1759185033197,-8260.13072239,0.00017715,2]
[388473380,1759185033206,-239.84119403,0.00017715,2]
[388473381,1759185033216,-500.0,0.0001772,2]
[388473382,1759185033226,-500.0,0.0001772,2]
[388473384,1759185033235,-500.0,0.0001774,2]
[388473386,1759185033245,-500.0,0.0001774,2]
[388473387,1759185033254,-500.0,0.0001774,2]
[388473388,1759185033264,-500.0,0.0001774,2]
[388473390,1759185033275,-500.0,0.0001774,2]
[388473392,1759185033284,-500.0,0.0001774,2]
[388473394,1759185033293,-500.0,0.0001774,2]
[388473396,1759185033302,-500.0,0.0001774,2]
[388473398,1759185033312,-6840.21107791,0.0001777,2]
[388473401,1759185033324,-1254.07240536,0.0001777,2]
[388473407,1759185033377,-471.47207584,0.0001777,2]
[388473409,1759185033387,-497.80455337,0.000178,6]
[388473412,1759185033400,-502.19544663,0.000178,6]
[388473414,1759185033411,-1608.97009877,0.00017825,2]
[388473416,1759185033421,-1000.0,0.00017856,2]
[388473418,1759185033431,-1060.313,0.00017869,2]
[388473420,1759185033444,-174.657,0.00017869,2]
[388473423,1759185033454,-603.0,0.00017877,2]
[388473425,1759185033464,-2129.956,0.00017877,2]
[388473427,1759185033474,-4113.0,0.00017877,2]
[388473429,1759185033483,-3398.0,0.00017877,2]
[388473431,1759185033492,-200.0,0.00017879,2]
[388473433,1759185033501,-623.58710448,0.00017879,2]
[388473435,1759185033511,-322.6107,0.00017879,2]
[388473437,1759185033520,-204.22808892,0.00017879,2]
[388473439,1759185033531,-12205.1645502,0.0001788,2]
[388473442,1759185033542,-4197.05433645,0.0001788,2]
[388473493,1759185036159,400.0,0.00030136,120]
[388473657,1759185040218,-500.0,0.00017713,2]
[388473658,1759185040229,-500.0,0.00017713,2]
[388473659,1759185040254,-500.0,0.00017713,2]
[388473660,1759185040264,-500.0,0.00017713,2]
[388473661,1759185040273,-500.0,0.00017713,2]
[388473662,1759185040282,-500.0,0.00017713,2]
[388473663,1759185040291,-500.0,0.00017713,2]
[388473664,1759185040301,-500.0,0.00017713,2]
[388473665,1759185040310,-500.0,0.00017713,2]
[388473666,1759185040319,-500.0,0.00017713,2]
[388473667,1759185040329,-500.0,0.00017713,2]
[388473668,1759185040338,-500.0,0.00017713,2]
[388473669,1759185040347,-500.0,0.00017713,2]
[388473670,1759185040356,-500.0,0.00017713,2]
[388473671,1759185040370,-787.0,0.00017877,2]
[388473672,1759185040380,-4824.78111335,0.0001788,2]
[388473673,1759185040389,-29554.13464955,0.0001789,2]
[388473681,1759185044088,-500.0,0.00017713,2]
[388473682,1759185044098,-268.04221329,0.00017713,2]
[388473683,1759185044108,-138.16766226,0.0001789,2]
[388473684,1759185044137,-6038.91289905,0.0001789,2]
[388473685,1759185044150,-2332.5605175,0.0001789,2]
[388473686,1759185044160,-1527.61003939,0.000179,6]
[388473687,1759185044196,-72.38996061,0.000179,6]
[388473688,1759185044206,-150.0,0.00017933,2]
[388473689,1759185044215,-168.0,0.00017945,2]
[388473690,1759185044225,-168.0,0.00017981,2]
[388473691,1759185044235,-168.0,0.00017983,2]
[388473692,1759185044245,-151.0,0.00017997,2]
[388473693,1759185044255,-151.0,0.00017997,2]
[388473694,1759185044265,-500.0,0.00017999,2]
[388473695,1759185044275,-280.36061636,0.00017999,2]
[388473696,1759185044285,-500.0,0.00017999,2]
[388473697,1759185044295,-204.39948604,0.00017999,2]
[388473698,1759185044305,-103194.01046217,0.00018,2]
[388473700,1759185046730,-2209.85180592,0.00018,2]
[388473701,1759185046743,-2891.4999995,0.00018,2]
[388473702,1759185053595,150.0,0.000126,2]
[388473703,1759185055688,150.0,0.0001378,2]
[388473704,1759185055771,150.0,0.0001497,2]
[388473705,1759185055888,150.0,0.0001615,2]
[388473706,1759185074489,400.0,0.00030136,120]
[388473707,1759185091946,400.0,0.00030136,120]
[388473709,1759185107494,400.0,0.00030136,120]
[388473710,1759185124656,400.0,0.00030136,120]
[388473711,1759185132000,2600.0,0.00030137,120]
[388473712,1759185141328,400.0,0.00030136,120]
[388473714,1759185158082,400.0,0.00030136,120]
[388473715,1759185172010,400.0,0.00030136,120]
[388473716,1759185191569,400.0,0.00030136,120]
[388473717,1759185209244,3558.6402332,0.00030136,120]
[388473718,1759185213874,400.0,0.00030136,120]
[388473741,1759185230165,400.0,0.00030136,120]
[388473755,1759185257926,475.12,0.00030136,120]
[388473837,1759185391928,154.14,8.619e-05,2]
[388473838,1759185392132,154.14,9.85e-05,2]
[388473839,1759185392344,154.14,0.00011081,2]
[388473840,1759185392563,154.14,0.00012312,2]
[388473841,1759185392978,154.14,0.00013544,2]
[388473842,1759185393211,154.14,0.00014775,2]
[388473843,1759185393496,154.14,0.00016006,2]
[388473853,1759185592483,150.0,0.000116,2]
[388473854,1759185592871,150.0,0.0001278,2]
[388473855,1759185593260,150.0,0.0001397,2]
[388473856,1759185593628,150.0,0.0001515,2]
[388473857,1759185593984,150.0,0.0001633,2]
[388474039,1759186053720,166.12,0.000166,2]
[388474040,1759186120817,150.0,0.000106,2]
[388474041,1759186121165,150.0,0.0001178,2]
[388474042,1759186121541,150.0,0.0001297,2]
[388474043,1759186121933,150.0,0.0001415,2]
[388474044,1759186122371,150.0,0.0001533,2]
[388474045,1759186122771,200.0,0.0001652,2]
[388474052,1759186201621,150.0,0.00016562,7]
[388474060,1759186231646,-165.73,0.00016612,2]
[388474061,1759186231655,-3427.750889,0.00016727,2]
[388474062,1759186231665,-2000.0,0.00016811,2]
[388474063,1759186231675,-250.0,0.00016832,2]
[388474064,1759186231684,-367.68,0.00016854,2]
[388474065,1759186231694,-1200.0,0.00016909,2]
[388474066,1759186231703,-2000.0,0.0001691,2]
[388474067,1759186231712,-722.61100412,0.0001691,2]
[388474068,1759186231721,-300.0,0.00016917,2]
[388474069,1759186231731,-2751.0,0.00016918,2]
[388474070,1759186231740,-150.0,0.00016989,2]
[388474071,1759186231750,-10.0897625,0.00016989,2]
[388474072,1759186231762,-139.9102375,0.00016989,2]
[388474073,1759186231771,-249.96,0.00017021,2]
[388474074,1759186231780,-4899.41213256,0.00017022,2]
[388474075,1759186231792,-167.89905831,0.00017022,2]
[388474076,1759186231801,-194.98,0.00017035,2]
[388474077,1759186231811,-499.16,0.00017157,2]
[388474078,1759186231820,-2913.79695033,0.00017157,2]
[388474079,1759186231831,-1931.32341625,0.00017157,2]
[388474080,1759186231842,-1644.27585547,0.00017157,2]
[388474081,1759186231853,-910.22854128,0.00017157,2]
[388474082,1759186231865,-5400.0,0.00017157,2]
[388474083,1759186231883,-10507.69523667,0.00017157,2]
[388474084,1759186231893,-666.0,0.00017158,3]
[388474085,1759186231903,-160.12,0.00017168,2]
[388474086,1759186231913,-239.84119403,0.00017228,2]
[388474088,1759186231923,-8260.13072239,0.00017228,2]
[388474090,1759186231933,-800.0,0.00017235,2]
[388474092,1759186231942,-154.14,0.00017237,2]
[388474094,1759186231951,-1000.0,0.0001724,2]
[388474096,1759186231961,-225.61638339,0.00017264,2]
[388474098,1759186231972,-474.38361661,0.00017264,2]
[388474109,1759186232436,-7920.16312836,0.00017283,2]
[388474110,1759186232446,-322.6107,0.00017288,2]
[388474111,1759186232455,-623.58710448,0.00017288,2]
[388474112,1759186232464,-241.0,0.00017298,2]
[388474113,1759186232473,-26055.37,0.00017299,2]
[388474114,1759186232483,-250.0,0.00017423,2]
[388474115,1759186232492,-300.0,0.000177,6]
[388474116,1759186232501,-195.0,0.000177,2]
[388474117,1759186232512,-806.53685444,0.00017731,2]
[388474118,1759186232522,-700.0,0.000178,6]
[388474119,1759186232531,-487.59737,0.0001782,2]
[388474120,1759186232540,-848.251,0.00017844,2]
[388474121,1759186232550,-168.0,0.00017875,2]
[388474122,1759186232559,-168.0,0.00017886,2]
[388474123,1759186232568,-194.98,0.00017887,2]
[388474124,1759186232578,-1100.0,0.000179,6]
[388474125,1759186232587,-1000.0,0.000179,2]
[388474126,1759186232596,-13496.62162833,0.0001791,2]
[388474127,1759186232606,-1740.9672327,0.00017943,2]
[388474128,1759186232615,-787.0,0.00017977,2]
[388474129,1759186232624,-3398.0,0.00017977,2]
[388474130,1759186232634,-1263.0,0.00017977,2]
[388474131,1759186232644,-4113.0,0.00017977,2]
[388474132,1759186232654,-2342.264,0.00017977,2]
[388474133,1759186232665,-196.25243145,0.00017999,2]
[388474134,1759186232674,-500.0,0.00017999,2]
[388474135,1759186232683,-343.07964023,0.00017999,2]
[388474136,1759186232694,-57910.41954976,0.00018,2]
[388474137,1759186232703,-1172.98211521,0.00018,2]
[388474138,1759186232712,-2833.34050369,0.00018,2]
[388474139,1759186232723,-200.0,0.00018,2]
[388474140,1759186232732,-474.44399432,0.00018005,2]
[388474141,1759186232742,-43.88106156,0.00018007,2]
[388474142,1759186232754,-13452.74056668,0.00018007,2]
[388474143,1759186232764,-793.0,0.00018063,2]
[388474144,1759186232773,-200.0,0.00018099,2]
[388474145,1759186232783,-150.0,0.000181,2]
[388474146,1759186232792,-294.35803713,0.000181,2]
[388474147,1759186232802,-3493.90885927,0.00018103,2]
[388474149,1759186237578,-500.0,0.00017021,2]
[388474150,1759186237588,-363.11580148,0.00017021,2]
[388474151,1759186237598,-20.50219584,0.00018103,2]
[388474152,1759186237610,-1552.17388718,0.00018103,2]
[388474153,1759186237640,-2005.6021978,0.00018103,2]
[388474154,1759186237655,-322.86881087,0.00018103,2]
[388474155,1759186237672,-1903.22778096,0.00018103,2]
[388474156,1759186237685,-4198.33789632,0.00018103,2]
[388474157,1759186237694,-2370.41638417,0.0001812,2]
[388474158,1759186237706,-359.0330714,0.0001812,2]
[388474159,1759186237716,-418.08205901,0.00018197,2]
[388474160,1759186237727,-6268.9625085,0.000182,2]
[388474203,1759186239447,-844.34473846,0.000182,2]
[388474204,1759186239460,-927.740244,0.000182,2]
[388474205,1759186239513,-5455.57413728,0.000182,2]
[388474206,1759186239523,-168.0,0.00018212,2]
[388474207,1759186239533,-361.52737169,0.00018273,2]
[388474208,1759186239542,-500.0,0.00018273,2]
[388474209,1759186239552,-500.0,0.00018273,2]
[388474210,1759186239561,-400.0,0.00018273,2]
[388474211,1759186239571,-500.0,0.00018273,2]
[388474212,1759186239581,-500.0,0.00018273,2]
[388474213,1759186239592,-500.0,0.00018273,2]
[388474214,1759186239602,-500.0,0.00018273,2]
[388474215,1759186239621,-150.0,0.00018274,2]
[388474216,1759186239631,-250.0,0.00018274,2]
[388474217,1759186239642,-521.0,0.00018274,2]
[388474218,1759186239653,-500.0,0.00018274,2]
[388474219,1759186239664,-150.0,0.00018274,2]
[388474220,1759186239675,-150.0,0.00018274,2]
[388474221,1759186239685,-500.0,0.00018274,2]
[388474222,1759186239696,-1618.0,0.00018274,2]
[388474223,1759186239707,-150.0,0.00018274,2]
[388474224,1759186239718,-500.0,0.00018274,2]
[388474225,1759186239729,-500.0,0.00018274,2]
[388474226,1759186239740,-500.0,0.00018274,2]
[388474227,1759186239750,-500.0,0.00018274,2]
[388474228,1759186239761,-500.0,0.00018274,2]
[388474229,1759186239772,-500.0,0.00018274,2]
[388474230,1759186239783,-150.0,0.00018274,2]
[388474231,1759186239794,-150.0,0.00018274,2]
[388474232,1759186239804,-150.0,0.00018274,2]
[388474233,1759186239815,-500.0,0.00018274,2]
[388474234,1759186239825,-150.0,0.00018288,2]
[388474235,1759186239836,-281.9018861,0.00018288,2]
[388474236,1759186239846,-150.0,0.00018288,2]
[388474237,1759186239858,-500.0,0.00018288,2]
[388474238,1759186239869,-544.93,0.00018291,2]
[388474239,1759186239880,-557505.05528158,0.00018296,2]
[388474240,1759186239891,-151.0,0.00018296,2]
[388474241,1759186239901,-151.0,0.00018296,2]
[388474242,1759186239912,-643.279867,0.00018296,2]
[388474243,1759186239922,-643.279867,0.00018296,2]
[388474244,1759186239932,-643.279867,0.00018296,2]
[388474245,1759186239942,-151.0,0.00018296,2]
[388474246,1759186239952,-643.279867,0.00018296,2]
[388474247,1759186239962,-151.0,0.00018296,2]
[388474248,1759186239973,-253.651052,0.00018296,2]
[388474249,1759186239983,-151.0,0.00018296,2]
[388474250,1759186240000,-151.0,0.00018296,2]